fUST/lending_fUST_20250915
["ID","MTS","AMOUNT","RATE_DAILY","PERIOD"]
[385507967,1757881838424,-2876.68,0.00021917,2]
[385507968,1757881838433,-480.0,0.00021917,2]
[385507969,1757881838442,-1480.61,0.00021917,2]
[385507970,1757881838452,-592.29,0.00021917,2]
[385507971,1757881838461,-480.0,0.00021917,2]
[385507972,1757881838470,-635.85,0.00021917,2]
[385507973,1757881838479,-2120.75,0.00021917,2]
[385507974,1757881838488,-480.0,0.00021917,2]
[385507975,1757881838497,-480.0,0.00021917,2]
[385507976,1757881838507,-374.6559393,0.00021917,2]
[385507977,1757881838517,-596.44,0.00021917,2]
[385507978,1757881838526,-515.91,0.00021917,2]
[385507979,1757881838536,-573.5,0.00021917,2]
[385507980,1757881838546,-480.0,0.00021917,2]
[385507981,1757881838555,-480.0,0.00021917,2]
[385507982,1757881838564,-480.0,0.00021917,2]
[385507983,1757881838574,-480.0,0.00021917,2]
[385507984,1757881838583,-300.0,0.00021917,2]
[385507985,1757881838592,-2043.32,0.00021917,2]
[385507986,1757881838601,-480.0,0.00021917,2]
[385507987,1757881838611,-1154.95,0.00021917,2]
[385507988,1757881838620,-480.0,0.00021917,2]
[385507989,1757881838629,-480.0,0.00021917,2]
[385507990,1757881838639,-480.0,0.00021917,2]
[385507991,1757881838648,-529.75,0.00021917,2]
[385507992,1757881838657,-551.32,0.00021917,2]
[385507993,1757881838666,-672.68,0.00021917,2]
[385507994,1757881838675,-12444.77,0.00021917,2]
[385507995,1757881838684,-480.0,0.00021917,2]
[385507996,1757881838694,-480.0,0.00021917,2]
[385507997,1757881838704,-681.27,0.00021917,2]
[385507998,1757881838714,-810.67,0.00021917,2]
[385507999,1757881838723,-573.0,0.00021917,2]
[385508000,1757881838732,-480.0,0.00021917,2]
[385508001,1757881838741,-480.0,0.00021917,2]
[385508002,1757881838751,-480.0,0.00021917,2]
[385508003,1757881838760,-516.78,0.00021917,2]
[385508004,1757881838769,-555.85,0.00021917,2]
[385508005,1757881838778,-1452.44,0.00021917,2]
[385508006,1757881838788,-480.0,0.00021917,2]
[385508007,1757881838798,-653.99,0.00021917,2]
[385508008,1757881838807,-606.08,0.00021917,2]
[385508009,1757881838816,-1131.35,0.00021917,2]
[385508010,1757881838825,-480.0,0.00021917,2]
[385508011,1757881838836,-480.0,0.00021917,2]
[385508012,1757881838850,-480.0,0.00021917,2]
[385508013,1757881838860,-1271.7,0.00021917,2]
[385508014,1757881838869,-991.26,0.00021917,2]
[385508015,1757881838878,-480.0,0.00021917,2]
[385508016,1757881838889,-480.0,0.00021917,2]
[385508017,1757881838898,-618.93,0.00021917,2]
[385508018,1757881838906,-480.0,0.00021917,2]
[385508019,1757881838915,-480.0,0.00021917,2]
[385508020,1757881838925,-1458.56,0.00021917,2]
[385508021,1757881838934,-480.0,0.00021917,2]
[385508022,1757881838944,-480.0,0.00021917,2]
[385508023,1757881838953,-480.0,0.00021917,2]
[385508024,1757881838962,-658.2,0.00021917,2]
[385508025,1757881838971,-480.0,0.00021917,2]
[385508026,1757881838980,-719.35,0.00021917,2]
[385508027,1757881838989,-612.18,0.00021917,2]
[385508028,1757881838998,-151.0,0.00021917,2]
[385508029,1757881839007,-500.0,0.00021917,2]
[385508030,1757881839017,-480.0,0.00021917,2]
[385508031,1757881839027,-822.57,0.00021917,2]
[385508032,1757881839036,-10590.30103238,0.0002197,2]
[385508033,1757881839046,-168.0,0.00021983,2]
[385508034,1757881839055,-151.0,0.00022,2]
[385508035,1757881839065,-547.01,0.00022,2]
[385508036,1757881839074,-220.688909,0.00022013,2]
[385508037,1757881839083,-168.0,0.00022063,2]
[385508038,1757881839093,-188.5479816,0.00022082,2]
[385508039,1757881839102,-188.5479816,0.00022082,2]
[385508040,1757881839111,-188.5479816,0.00022082,2]
[385508041,1757881839121,-188.5479816,0.00022082,2]
[385508042,1757881839130,-188.5479816,0.00022082,2]
[385508043,1757881839139,-168.0,0.00022102,2]
[385508044,1757881839148,-168.0,0.00022118,2]
[385508045,1757881839158,-168.0,0.00022172,2]
[385508046,1757881839167,-204.93562152,0.00022191,2]
[385508047,1757881839176,-151.0,0.00022191,2]
[385508048,1757881839185,-245.0,0.00022191,2]
[385508049,1757881839195,-151.0,0.00022191,2]
[385508050,1757881839204,-1150.0,0.00022191,2]
[385508051,1757881839213,-151.0,0.00022191,2]
[385508052,1757881839223,-151.0,0.00022191,2]
[385508053,1757881839232,-500.0,0.00022191,2]
[385508054,1757881839241,-480.0,0.00022191,3]
[385508055,1757881839252,-536.16,0.00022191,3]
[385508056,1757881839261,-480.0,0.00022191,3]
[385508057,1757881839270,-480.0,0.00022191,3]
[385508058,1757881839279,-480.0,0.00022191,3]
[385508059,1757881839288,-480.0,0.00022191,3]
[385508060,1757881839298,-751.94,0.00022191,3]
[385508061,1757881839308,-482.69,0.00022191,3]
[385508062,1757881839318,-480.0,0.00022191,3]
[385508063,1757881839327,-480.0,0.00022191,3]
[385508064,1757881839336,-480.0,0.00022191,3]
[385508065,1757881839346,-480.0,0.00022191,3]
[385508066,1757881839355,-810.23,0.00022191,3]
[385508067,1757881839364,-480.0,0.00022191,3]
[385508068,1757881839374,-480.0,0.00022191,3]
[385508069,1757881839383,-480.0,0.00022191,3]
[385508070,1757881839393,-506.05,0.00022191,3]
[385508071,1757881839402,-480.0,0.00022191,3]
[385508072,1757881839411,-480.0,0.00022191,3]
[385508073,1757881839421,-480.0,0.00022191,3]
[385508074,1757881839430,-480.0,0.00022191,3]
[385508075,1757881839440,-480.0,0.00022191,3]
[385508076,1757881839450,-568.12903389,0.00022191,3]
[385508077,1757881839459,-480.0,0.00022191,3]
[385508078,1757881839469,-480.0,0.00022191,3]
[385508080,1757881839480,-480.0,0.00022191,3]
[385508081,1757881839489,-480.0,0.00022191,3]
[385508082,1757881839498,-480.0,0.00022191,3]
[385508083,1757881839510,-980.85,0.00022191,3]
[385508084,1757881839520,-480.0,0.00022191,3]
[385508085,1757881839529,-480.0,0.00022191,3]
[385508086,1757881839538,-480.0,0.00022191,3]
[385508087,1757881839548,-480.0,0.00022191,3]
[385508088,1757881839558,-480.0,0.00022191,3]
[385508089,1757881839567,-481.57,0.00022191,3]
[385508090,1757881839576,-514.62,0.00022191,3]
[385508091,1757881839586,-507.17,0.00022191,3]
[385508092,1757881839595,-480.0,0.00022191,3]
[385508093,1757881839603,-480.0,0.00022191,3]
[385508094,1757881839613,-480.0,0.00022191,3]
[385508095,1757881839622,-480.0,0.00022191,3]
[385508096,1757881839631,-1418.5,0.00022191,3]
[385508097,1757881839641,-3765.01,0.00022191,3]
[385508098,1757881839650,-480.0,0.00022191,3]
[385508099,1757881839659,-480.0,0.00022191,3]
[385508101,1757881839669,-6560.0,0.00022191,3]
[385508102,1757881839678,-1174.39,0.00022191,3]
[385508103,1757881839687,-1050.05,0.00022191,3]
[385508104,1757881839697,-480.0,0.00022191,3]
[385508106,1757881839707,-239.69,0.00022191,3]
[385508107,1757881839719,-480.0,0.00022191,3]
[385508108,1757881839729,-3759.44,0.00022191,3]
[385508109,1757881839739,-1947.42,0.00022191,3]
[385508110,1757881839748,-629.55,0.00022191,3]
[385508111,1757881839758,-480.0,0.00022191,3]
[385508112,1757881839767,-480.0,0.00022191,3]
[385508113,1757881839776,-630.77,0.00022191,3]
[385508114,1757881839788,-480.0,0.00022191,3]
[385508115,1757881839798,-480.0,0.00022191,3]
[385508117,1757881839808,-480.0,0.00022191,3]
[385508118,1757881839817,-602.26,0.00022191,3]
[385508119,1757881839826,-1553.69,0.00022191,3]
[385508120,1757881839838,-480.0,0.00022191,3]
[385508121,1757881839847,-480.0,0.00022191,3]
[385508122,1757881839857,-1498.97,0.00022191,3]
[385508124,1757881839866,-2876.68,0.00022191,3]
[385508125,1757881839875,-480.0,0.00022191,3]
[385508126,1757881839888,-1480.61,0.00022191,3]
[385508127,1757881839897,-592.29,0.00022191,3]
[385508128,1757881839909,-480.0,0.00022191,3]
[385508129,1757881839919,-635.85,0.00022191,3]
[385508131,1757881839928,-2120.75,0.00022191,3]
[385508133,1757881839938,-480.0,0.00022191,3]
[385508134,1757881839948,-480.0,0.00022191,3]
[385508135,1757881839958,-596.44,0.00022191,3]
[385508136,1757881839967,-515.91,0.00022191,3]
[385508137,1757881839976,-573.5,0.00022191,3]
[385508139,1757881839985,-480.0,0.00022191,3]
[385508141,1757881839995,-480.0,0.00022191,3]
[385508143,1757881840004,-480.0,0.00022191,3]
[385508145,1757881840013,-480.0,0.00022191,3]
[385508146,1757881840022,-300.0,0.00022191,2]
[385508147,1757881840032,-2043.32,0.00022191,3]
[385508149,1757881840042,-480.0,0.00022191,3]
[385508151,1757881840051,-1154.95,0.00022191,3]
[385508152,1757881840060,-480.0,0.00022191,3]
[385508154,1757881840070,-480.0,0.00022191,3]
[385508156,1757881840079,-480.0,0.00022191,3]
[385508158,1757881840088,-529.75,0.00022191,3]
[385508160,1757881840097,-672.68,0.00022191,3]
[385508161,1757881840107,-551.32,0.00022191,3]
[385508163,1757881840117,-12444.77,0.00022191,3]
[385508164,1757881840127,-511.33989218,0.00022191,3]
[385508165,1757881840137,-480.0,0.00022191,3]
[385508166,1757881840149,-681.27,0.00022191,3]
[385508167,1757881840159,-810.67,0.00022191,3]
[385508168,1757881840168,-573.0,0.00022191,3]
[385508169,1757881840177,-480.0,0.00022191,3]
[385508170,1757881840186,-480.0,0.00022191,3]
[385508171,1757881840195,-480.0,0.00022191,3]
[385508172,1757881840206,-516.78,0.00022191,3]
[385508173,1757881840215,-555.85,0.00022191,3]
[385508174,1757881840225,-480.0,0.00022191,3]
[385508175,1757881840235,-1452.44,0.00022191,3]
[385508176,1757881840246,-653.99,0.00022191,3]
[385508177,1757881840256,-606.08,0.00022191,3]
[385508178,1757881840265,-1131.35,0.00022191,3]
[385508179,1757881840274,-480.0,0.00022191,3]
[385508180,1757881840284,-480.0,0.00022191,3]
[385508181,1757881840293,-480.0,0.00022191,3]
[385508182,1757881840302,-1271.7,0.00022191,3]
[385508183,1757881840311,-991.26,0.00022191,3]
[385508184,1757881840320,-480.0,0.00022191,3]
[385508185,1757881840329,-480.0,0.00022191,3]
[385508186,1757881840483,-618.93,0.00022191,3]
[385508187,1757881840494,-480.0,0.00022191,3]
[385508188,1757881840505,-480.0,0.00022191,3]
[385508189,1757881840516,-1458.56,0.00022191,3]
[385508190,1757881840528,-480.0,0.00022191,3]
[385508191,1757881840539,-480.0,0.00022191,3]
[385508192,1757881840551,-480.0,0.00022191,3]
[385508193,1757881840561,-658.2,0.00022191,3]
[385508194,1757881840570,-480.0,0.00022191,3]
[385508195,1757881840579,-719.35,0.00022191,3]
[385508196,1757881840588,-612.18,0.00022191,3]
[385508197,1757881840597,-480.0,0.00022191,3]
[385508198,1757881840607,-822.57,0.00022191,3]
[385508199,1757881840617,-1164.07,0.000222,7]
[385508200,1757881840626,-2218.15,0.000222,7]
[385508201,1757881840636,-220.688909,0.00022209,2]
[385508202,1757881840645,-160.0,0.00022289,3]
[385508203,1757881840655,-283.55921611,0.00022322,2]
[385508204,1757881840664,-151.0,0.00022346,2]
[385508205,1757881840673,-300.0,0.00022354,20]
[385508206,1757881840682,-300.0,0.00022354,20]
[385508207,1757881840691,-300.0,0.00022354,20]
[385508208,1757881840700,-300.0,0.00022354,20]
[385508209,1757881840710,-300.0,0.00022354,20]
[385508210,1757881840721,-300.0,0.00022354,20]
[385508211,1757881840730,-300.0,0.00022354,20]
[385508212,1757881840739,-300.0,0.00022354,20]
[385508213,1757881840748,-300.0,0.00022354,20]
[385508214,1757881840757,-300.0,0.00022354,20]
[385508215,1757881840767,-300.0,0.00022354,20]
[385508216,1757881840776,-300.0,0.00022354,20]
[385508217,1757881840786,-300.0,0.00022354,20]
[385508218,1757881840796,-300.0,0.00022354,20]
[385508219,1757881840805,-300.0,0.00022354,20]
[385508220,1757881840815,-600.0,0.00022354,20]
[385508221,1757881840824,-1912.35412915,0.00022398,2]
[385508222,1757881840834,-220.688909,0.00022404,2]
[385508223,1757881840845,-168.0,0.00022437,2]
[385508224,1757881840854,-151.0,0.00022465,2]
[385508225,1757881840863,-163.0,0.00022465,2]
[385508226,1757881840872,-1150.0,0.00022465,2]
[385508227,1757881840881,-151.0,0.00022465,2]
[385508228,1757881840891,-200.31691441,0.00022465,2]
[385508229,1757881840900,-598.16985905,0.00022465,2]
[385508230,1757881840909,-480.0,0.00022465,3]
[385508231,1757881840919,-536.16,0.00022465,3]
[385508232,1757881840929,-480.0,0.00022465,3]
[385508233,1757881840938,-480.0,0.00022465,3]
[385508234,1757881840947,-480.0,0.00022465,3]
[385508235,1757881840956,-480.0,0.00022465,3]
[385508236,1757881840966,-751.94,0.00022465,3]
[385508237,1757881840975,-482.69,0.00022465,3]
[385508238,1757881840984,-480.0,0.00022465,3]
[385508239,1757881840994,-480.0,0.00022465,3]
[385508240,1757881841003,-480.0,0.00022465,3]
[385508241,1757881841012,-810.23,0.00022465,3]
[385508242,1757881841021,-480.0,0.00022465,3]
[385508243,1757881841030,-480.0,0.00022465,3]
[385508244,1757881841043,-480.0,0.00022465,3]
[385508245,1757881841053,-506.05,0.00022465,3]
[385508246,1757881841062,-480.0,0.00022465,3]
[385508247,1757881841071,-480.0,0.00022465,3]
[385508248,1757881841080,-480.0,0.00022465,3]
[385508249,1757881841089,-480.0,0.00022465,3]
[385508250,1757881841099,-480.0,0.00022465,3]
[385508251,1757881841108,-480.0,0.00022465,3]
[385508252,1757881841117,-480.0,0.00022465,3]
[385508253,1757881841126,-980.85,0.00022465,3]
[385508254,1757881841135,-480.0,0.00022465,3]
[385508255,1757881841144,-480.0,0.00022465,3]
[385508256,1757881841153,-480.0,0.00022465,3]
[385508257,1757881841162,-480.0,0.00022465,3]
[385508258,1757881841172,-480.0,0.00022465,3]
[385508259,1757881841181,-481.57,0.00022465,3]
[385508260,1757881841191,-514.62,0.00022465,3]
[385508261,1757881841200,-507.17,0.00022465,3]
[385508262,1757881841209,-480.0,0.00022465,3]
[385508263,1757881841218,-374.13513559,0.00022465,3]
[385508264,1757881841228,-480.0,0.00022465,3]
[385508265,1757881841237,-480.0,0.00022465,3]
[385508266,1757881841246,-1418.5,0.00022465,3]
[385508267,1757881841255,-3765.01,0.00022465,3]
[385508268,1757881841264,-480.0,0.00022465,3]
[385508269,1757881841273,-480.0,0.00022465,3]
[385508270,1757881841281,-6560.0,0.00022465,3]
[385508271,1757881841291,-1174.39,0.00022465,3]
[385508272,1757881841303,-1050.05,0.00022465,3]
[385508273,1757881841313,-480.0,0.00022465,3]
[385508274,1757881841323,-3759.44,0.00022465,3]
[385508275,1757881841333,-1947.42,0.00022465,3]
[385508276,1757881841342,-629.55,0.00022465,3]
[385508277,1757881841351,-480.0,0.00022465,3]
[385508278,1757881841361,-480.0,0.00022465,3]
[385508279,1757881841370,-630.77,0.00022465,3]
[385508280,1757881841379,-480.0,0.00022465,3]
[385508281,1757881841388,-480.0,0.00022465,3]
[385508282,1757881841397,-602.26,0.00022465,3]
[385508283,1757881841406,-1553.69,0.00022465,3]
[385508284,1757881841416,-480.0,0.00022465,3]
[385508285,1757881841425,-480.0,0.00022465,3]
[385508286,1757881841434,-1498.97,0.00022465,3]
[385508287,1757881841443,-2876.68,0.00022465,3]
[385508288,1757881841452,-480.0,0.00022465,3]
[385508289,1757881841462,-1480.61,0.00022465,3]
[385508290,1757881841470,-592.29,0.00022465,3]
[385508291,1757881841479,-480.0,0.00022465,3]
[385508292,1757881841488,-635.85,0.00022465,3]
[385508293,1757881841498,-2120.75,0.00022465,3]
[385508294,1757881841507,-480.0,0.00022465,3]
[385508295,1757881841515,-480.0,0.00022465,3]
[385508296,1757881841524,-596.44,0.00022465,3]
[385508297,1757881841534,-515.91,0.00022465,3]
[385508298,1757881841544,-573.5,0.00022465,3]
[385508299,1757881841553,-480.0,0.00022465,3]
[385508300,1757881841563,-480.0,0.00022465,3]
[385508301,1757881841572,-480.0,0.00022465,3]
[385508302,1757881841581,-300.0,0.00022465,2]
[385508303,1757881841590,-2043.32,0.00022465,3]
[385508304,1757881841599,-480.0,0.00022465,3]
[385508305,1757881841608,-1154.95,0.00022465,3]
[385508306,1757881841617,-480.0,0.00022465,3]
[385508307,1757881841626,-480.0,0.00022465,3]
[385508308,1757881841636,-480.0,0.00022465,3]
[385508309,1757881841648,-529.75,0.00022465,3]
[385508310,1757881841657,-672.68,0.00022465,3]
[385508311,1757881841666,-551.32,0.00022465,3]
[385508312,1757881841675,-12444.77,0.00022465,3]
[385508313,1757881841684,-480.0,0.00022465,3]
[385508314,1757881841693,-681.27,0.00022465,3]
[385508315,1757881841704,-810.67,0.00022465,3]
[385508316,1757881841714,-573.0,0.00022465,3]
[385508317,1757881841723,-480.0,0.00022465,3]
[385508318,1757881841733,-480.0,0.00022465,3]
[385508319,1757881841743,-516.78,0.00022465,3]
[385508320,1757881841753,-555.85,0.00022465,3]
[385508321,1757881841762,-1452.44,0.00022465,3]
[385508322,1757881841771,-480.0,0.00022465,3]
[385508323,1757881841780,-653.99,0.00022465,3]
[385508324,1757881841789,-606.08,0.00022465,3]
[385508325,1757881841799,-1131.35,0.00022465,3]
[385508326,1757881841809,-480.0,0.00022465,3]
[385508327,1757881841820,-480.0,0.00022465,3]
[385508328,1757881841832,-480.0,0.00022465,3]
[385508329,1757881841853,-1271.7,0.00022465,3]
[385508330,1757881841863,-991.26,0.00022465,3]
[385508331,1757881841872,-480.0,0.00022465,3]
[385508332,1757881841881,-480.0,0.00022465,3]
[385508333,1757881841890,-618.93,0.00022465,3]
[385508334,1757881841899,-480.0,0.00022465,3]
[385508335,1757881841909,-480.0,0.00022465,3]
[385508336,1757881841919,-1458.56,0.00022465,3]
[385508337,1757881841930,-480.0,0.00022465,3]
[385508338,1757881841941,-480.0,0.00022465,3]
[385508339,1757881841952,-480.0,0.00022465,3]
[385508340,1757881841961,-658.2,0.00022465,3]
[385508341,1757881841970,-480.0,0.00022465,3]
[385508342,1757881841979,-719.35,0.00022465,3]
[385508343,1757881841988,-612.18,0.00022465,3]
[385508344,1757881841997,-480.0,0.00022465,3]
[385508345,1757881842006,-822.57,0.00022465,3]
[385508346,1757881842016,-168.0,0.00022476,2]
[385508347,1757881842027,-36066.78,0.000225,7]
[385508348,1757881842039,-1015.09822985,0.000225,2]
[385508349,1757881842050,-168.0,0.00022534,2]
[385508350,1757881842059,-220.688909,0.000226,2]
[385508351,1757881842068,-151.0,0.00022601,2]
[385508352,1757881842077,-158.56763096,0.00022607,2]
[385508353,1757881842090,-2156.0,0.00022634,2]
[385508354,1757881842102,-634.0,0.00022634,2]
[385508355,1757881842114,-409.0,0.00022634,2]
[385508356,1757881842125,-410.748,0.00022634,2]
[385508357,1757881842136,-800.0,0.00022638,2]
[385508358,1757881842147,-500.0,0.00022673,2]
[385508359,1757881842158,-502.17324957,0.00022673,2]
[385508360,1757881842169,-500.0,0.00022673,2]
[385508361,1757881842181,-500.0,0.00022673,2]
[385508362,1757881842192,-500.0,0.00022673,2]
[385508363,1757881842204,-513.23307313,0.00022673,2]
[385508364,1757881842214,-500.0,0.00022673,2]
[385508365,1757881842225,-649.27957323,0.00022673,2]
[385508366,1757881842237,-500.0,0.00022673,2]
[385508367,1757881842248,-500.0,0.00022673,2]
[385508368,1757881842259,-501.52711983,0.00022673,2]
[385508369,1757881842271,-500.0,0.00022673,2]
[385508370,1757881842282,-500.0,0.00022673,2]
[385508371,1757881842294,-500.0,0.00022673,2]
[385508372,1757881842305,-500.0,0.00022673,2]
[385508373,1757881842317,-500.0,0.00022673,2]
[385508374,1757881842327,-500.0,0.00022673,2]
[385508375,1757881842338,-500.0,0.00022673,2]
[385508376,1757881842350,-500.0,0.00022673,2]
[385508377,1757881842361,-501.74410794,0.00022673,2]
[385508378,1757881842371,-500.0,0.00022673,2]
[385508379,1757881842383,-340.91074575,0.00022673,2]
[385508380,1757881842394,-188.84353114,0.00022673,2]
[385508381,1757881842406,-500.0,0.00022673,2]
[385508382,1757881842417,-500.0,0.00022673,2]
[385508383,1757881842428,-500.0,0.00022673,2]
[385508384,1757881842439,-500.0,0.00022673,2]
[385508385,1757881842449,-500.0,0.00022673,2]
[385508386,1757881842460,-519.41544812,0.00022673,2]
[385508388,1757881842471,-228.29320842,0.00022673,2]
[385508389,1757881842482,-502.6238293,0.00022673,2]
[385508390,1757881842492,-500.0,0.00022673,2]
[385508391,1757881842504,-323.03609201,0.00022673,2]
[385508392,1757881842515,-500.0,0.00022673,2]
[385508393,1757881842526,-500.0,0.00022673,2]
[385508394,1757881842538,-500.0,0.00022673,2]
[385508395,1757881842549,-500.0,0.00022673,2]
[385508396,1757881842560,-501.43906007,0.00022673,2]
[385508398,1757881842572,-500.0,0.00022673,2]
[385508399,1757881842583,-500.0,0.00022673,2]
[385508400,1757881842595,-260.22484996,0.00022673,2]
[385508401,1757881842607,-500.0,0.00022673,2]
[385508402,1757881842618,-500.0,0.00022673,2]
[385508403,1757881842628,-500.0,0.00022673,2]
[385508404,1757881842638,-309077.5380803,0.00022696,2]
[385508405,1757881842784,-513.50970133,0.00022696,2]
[385508406,1757881842798,-2963.27916508,0.00022696,2]
[385508412,1757881843256,-48576.000004,0.00022696,2]
[385508434,1757881846342,-160.0,0.00021917,2]
[385508435,1757881846351,-480.0,0.00021917,2]
[385508436,1757881846361,-480.0,0.00022191,3]
[385508437,1757881846371,-480.0,0.00022465,3]
[385508438,1757881846381,-8869.67304929,0.00022696,2]
[385508439,1757881846390,-977.22,0.000227,7]
[385508440,1757881846399,-168.0,0.00022701,2]
[385508441,1757881846409,-168.0,0.00022724,2]
[385508442,1757881846418,-3208.54,0.00022729,10]
[385508443,1757881846427,-189.29891301,0.00022739,2]
[385508444,1757881846436,-1150.0,0.00022739,2]
[385508445,1757881846446,-169.57383559,0.00022739,2]
[385508447,1757881846455,-480.0,0.00022739,3]
[385508449,1757881846464,-536.16,0.00022739,3]
[385508450,1757881846474,-480.0,0.00022739,3]
[385508451,1757881846483,-480.0,0.00022739,3]
[385508452,1757881846492,-480.0,0.00022739,3]
[385508453,1757881846501,-480.0,0.00022739,3]
[385508454,1757881846511,-751.94,0.00022739,3]
[385508455,1757881846520,-482.69,0.00022739,3]
[385508456,1757881846530,-480.0,0.00022739,3]
[385508457,1757881846541,-480.0,0.00022739,3]
[385508458,1757881846550,-810.23,0.00022739,3]
[385508460,1757881846560,-480.0,0.00022739,3]
[385508461,1757881846570,-480.0,0.00022739,3]
[385508462,1757881846579,-480.0,0.00022739,3]
[385508464,1757881846589,-506.05,0.00022739,3]
[385508465,1757881846599,-480.0,0.00022739,3]
[385508466,1757881846799,-480.0,0.00022739,3]
[385508467,1757881846814,-480.0,0.00022739,3]
[385508468,1757881846826,-480.0,0.00022739,3]
[385508469,1757881846837,-480.0,0.00022739,3]
[385508470,1757881846852,-480.0,0.00022739,3]
[385508471,1757881846861,-980.85,0.00022739,3]
[385508472,1757881846872,-480.0,0.00022739,3]
[385508473,1757881846881,-480.0,0.00022739,3]
[385508474,1757881846892,-355.88101104,0.00022739,3]
[385508475,1757881846903,-124.11898896,0.00022739,3]
[385508476,1757881846912,-480.0,0.00022739,3]
[385508477,1757881846923,-480.0,0.00022739,3]
[385508478,1757881846932,-151.04118344,0.00022739,3]
[385508484,1757881907928,1721.96933552,0.000199,2]
[385508494,1757882110103,1664.54871117,0.000199,2]
[385508501,1757882304266,1611.10749064,0.000199,2]
[385508505,1757882335326,265.62946839,0.0002015,2]
[385508511,1757882493775,1557.43462321,0.000199,2]
[385508512,1757882517625,265.62946839,0.0002015,2]
[385508532,1757882684647,1514.62844915,0.000199,2]
[385508588,1757882878737,1399.06245353,0.000199,2]
[385508589,1757882878761,64.99778156,0.000199,2]
[385508649,1757883032225,-1200.0,0.00021148,2]
[385508651,1757883032234,-300.0,0.00021148,2]
[385508653,1757883032244,-259.0,0.00021148,2]
[385508655,1757883032253,-2000.0,0.00021149,2]
[385508657,1757883032262,-2000.0,0.00021149,2]
[385508659,1757883032272,-2000.0,0.00021149,2]
[385508661,1757883032282,-2000.0,0.00021149,2]
[385508663,1757883032291,-2000.0,0.00021149,2]
[385508665,1757883032300,-2000.0,0.00021149,2]
[385508667,1757883032309,-2000.0,0.00021149,2]
[385508669,1757883032318,-658.974,0.00021149,2]
[385508671,1757883032329,-1000.0,0.00021149,2]
[385508673,1757883032338,-1000.0,0.00021149,2]
[385508675,1757883032347,-1000.0,0.00021149,2]
[385508677,1757883032356,-1000.0,0.00021149,2]
[385508679,1757883032365,-1000.0,0.00021149,2]
[385508681,1757883032377,-1000.0,0.00021149,2]
[385508683,1757883032386,-1000.0,0.00021149,2]
[385508685,1757883032395,-1000.0,0.00021149,2]
[385508687,1757883032404,-1000.0,0.00021149,2]
[385508689,1757883032413,-1000.0,0.00021149,2]
[385508691,1757883032422,-1138.13581371,0.00021149,2]
[385508986,1757883038107,-325.92442131,0.00021149,2]
[385508987,1757883038119,-13303.49034976,0.00021149,2]
[385508988,1757883038131,-6014.1617539,0.00021149,2]
[385508989,1757883038143,-2995.75892469,0.00021149,2]
[385508990,1757883038161,-119.20103812,0.00021149,2]
[385508991,1757883038171,-161.1183986,0.00021641,2]
[385508992,1757883038181,-161.11839859,0.00021691,2]